[Event "Late-Titled-Tuesday-Blitz-September-12-2023"]
[Site "Chess.com"]
[Date "2023.09.12"]
[Round "4"]
[White "Vaibhavraut99"]
[Black "kaponerde"]
[Result "1-0"]
[WhiteElo "2574"]
[BlackElo "2270"]
[TimeControl "180+1"]
[EndTime "14:36:44 PDT"]
[Termination "Vaibhavraut99 won on time"]

1. e4 {[%clk 0:02:59.9]} 1... c5 {[%clk 0:02:58.5]} 2. Nf3 {[%clk 0:02:59.6]}
2... g6 {[%clk 0:02:57.7]} 3. d4 {[%clk 0:02:58.8]} 3... cxd4 {[%clk 0:02:58.6]}
4. Qxd4 {[%clk 0:02:59.4]} 4... Nf6 {[%clk 0:02:58]} 5. Nc3 {[%clk 0:02:58.1]}
5... Nc6 {[%clk 0:02:58]} 6. Qa4 {[%clk 0:02:57.5]} 6... d6 {[%clk 0:02:58.2]}
7. e5 {[%clk 0:02:56.2]} 7... dxe5 {[%clk 0:02:59.1]} 8. Nxe5 {[%clk 0:02:56.6]}
8... Bd7 {[%clk 0:02:59.5]} 9. Nxd7 {[%clk 0:02:57]} 9... Qxd7 {[%clk
0:03:00.4]} 10. Be3 {[%clk 0:02:55.1]} 10... Bg7 {[%clk 0:02:58.9]} 11. Rd1
{[%clk 0:02:54.8]} 11... Qc7 {[%clk 0:02:58.3]} 12. Nb5 {[%clk 0:02:53.5]} 12...
Qc8 {[%clk 0:02:55.5]} 13. Nxa7 {[%clk 0:02:39.2]} 13... Qe6 {[%clk 0:02:51.5]}
14. Nxc6 {[%clk 0:02:36.3]} 14... O-O {[%clk 0:02:34.6]} 15. Na7 {[%clk
0:02:15.1]} 15... Nd5 {[%clk 0:02:32.5]} 16. Bc4 {[%clk 0:02:10.8]} 16... Rfd8
{[%clk 0:02:14.7]} 17. O-O {[%clk 0:02:08.2]} 17... Qe4 {[%clk 0:02:09]} 18. Qb3
{[%clk 0:01:57]} 18... Nxe3 {[%clk 0:02:02.2]} 19. Rxd8+ {[%clk 0:01:52.3]}
19... Rxd8 {[%clk 0:02:02]} 20. fxe3 {[%clk 0:01:52.2]} 20... Rd2 {[%clk
0:01:52.6]} 21. Rf3 {[%clk 0:01:39.6]} 21... Rd1+ {[%clk 0:01:13.5]} 22. Bf1
{[%clk 0:01:34.4]} 22... e6 {[%clk 0:01:07.6]} 23. Nb5 {[%clk 0:01:32.7]} 23...
Qh4 {[%clk 0:00:53.8]} 24. Nc3 {[%clk 0:01:22.9]} 24... Re1 {[%clk 0:00:49.9]}
25. Qxb7 {[%clk 0:01:14.5]} 25... f5 {[%clk 0:00:47.3]} 26. Qc8+ {[%clk
0:01:12.1]} 26... Kf7 {[%clk 0:00:46.8]} 27. Qd7+ {[%clk 0:01:11.3]} 27... Kf8
{[%clk 0:00:46.7]} 28. Qxe6 {[%clk 0:01:07.3]} 28... Bh6 {[%clk 0:00:40.4]} 29.
Nd5 {[%clk 0:01:03.1]} 29... Bg5 {[%clk 0:00:16.3]} 30. Qd6+ {[%clk 0:00:52.1]}
30... Kg7 {[%clk 0:00:15.2]} 31. Qe5+ {[%clk 0:00:50.5]} 31... Kh6 {[%clk
0:00:14.3]} 32. Qg3 {[%clk 0:00:46.9]} 32... Qxg3 {[%clk 0:00:06.5]} 33. Rxg3
{[%clk 0:00:47.8]} 33... Rc1 {[%clk 0:00:05.8]} 34. Nf4 {[%clk 0:00:38.7]} 34...
Rxc2 {[%clk 0:00:01.6]} 35. Rh3+ {[%clk 0:00:38.6]} 1-0

[Event "Late-Titled-Tuesday-Blitz-September-12-2023"]
[Site "Chess.com"]
[Date "2023.09.12"]
[Round "4"]
[White "PawnEatingZombie"]
[Black "cukus"]
[Result "0-1"]
[WhiteElo "2204"]
[BlackElo "2426"]
[TimeControl "180+1"]
[EndTime "14:36:47 PDT"]
[Termination "cukus won on time"]

1. e4 {[%clk 0:03:00.9]} 1... e5 {[%clk 0:02:59.1]} 2. Nf3 {[%clk 0:03:00.6]}
2... Nc6 {[%clk 0:02:59.4]} 3. d4 {[%clk 0:03:01]} 3... exd4 {[%clk 0:02:59]} 4.
Nxd4 {[%clk 0:03:01.4]} 4... Bc5 {[%clk 0:02:57.8]} 5. Nb3 {[%clk 0:03:01.1]}
5... Bb6 {[%clk 0:02:50.9]} 6. Nc3 {[%clk 0:02:59.8]} 6... d6 {[%clk 0:02:50]}
7. Qe2 {[%clk 0:02:58.5]} 7... Nge7 {[%clk 0:02:46.7]} 8. Bg5 {[%clk 0:02:52.5]}
8... h6 {[%clk 0:02:42.5]} 9. Bh4 {[%clk 0:02:51.9]} 9... Be6 {[%clk 0:02:42.1]}
10. O-O-O {[%clk 0:02:50.8]} 10... Qd7 {[%clk 0:02:41.8]} 11. f4 {[%clk
0:02:47.1]} 11... O-O-O {[%clk 0:02:30]} 12. h3 {[%clk 0:02:31.6]} 12... g5
{[%clk 0:02:22.3]} 13. fxg5 {[%clk 0:02:29.5]} 13... Ng6 {[%clk 0:02:19.6]} 14.
Bg3 {[%clk 0:02:17]} 14... hxg5 {[%clk 0:02:13.8]} 15. Qd2 {[%clk 0:01:55.7]}
15... g4 {[%clk 0:02:04.1]} 16. Bb5 {[%clk 0:01:31.2]} 16... a6 {[%clk
0:01:57.8]} 17. Ba4 {[%clk 0:01:30.9]} 17... gxh3 {[%clk 0:01:46.1]} 18. Nd5
{[%clk 0:01:16.3]} 18... Ba7 {[%clk 0:01:32.1]} 19. Bxc6 {[%clk 0:00:55.8]}
19... Qxc6 {[%clk 0:01:29.7]} 20. gxh3 {[%clk 0:00:47.8]} 20... Bxh3 {[%clk
0:01:27.1]} 21. Nd4 {[%clk 0:00:37.9]} 21... Qa4 {[%clk 0:01:23.5]} 22. Qc3
{[%clk 0:00:18.5]} 22... c6 {[%clk 0:01:13.2]} 23. b3 {[%clk 0:00:13]} 23...
Qa3+ {[%clk 0:01:06.6]} 24. Kb1 {[%clk 0:00:11.9]} 24... Kb8 {[%clk 0:01:02.9]}
25. Nxc6+ {[%clk 0:00:10.7]} 25... bxc6 {[%clk 0:00:58.3]} 26. Qxc6 {[%clk
0:00:10.6]} 26... Qc5 {[%clk 0:00:55]} 27. Qxc5 {[%clk 0:00:05.6]} 27... Bxc5
{[%clk 0:00:54.9]} 28. b4 {[%clk 0:00:04.9]} 28... Ba7 {[%clk 0:00:48.5]} 29. c4
{[%clk 0:00:04.7]} 29... Ne5 {[%clk 0:00:43.3]} 30. c5 {[%clk 0:00:04.3]} 30...
Bg2 {[%clk 0:00:42.6]} 31. Rxh8 {[%clk 0:00:03.4]} 31... Bxe4+ {[%clk
0:00:42.2]} 32. Kb2 {[%clk 0:00:02.8]} 32... Rxh8 {[%clk 0:00:38.1]} 33. cxd6
{[%clk 0:00:02.3]} 33... Nd3+ {[%clk 0:00:29.2]} 34. Kb3 {[%clk 0:00:02.7]}
34... Bxd5+ {[%clk 0:00:28.6]} 0-1

[Event "Late-Titled-Tuesday-Blitz-September-12-2023"]
[Site "Chess.com"]
[Date "2023.09.12"]
[Round "4"]
[White "AndreiITrifan"]
[Black "Zhigalko_Sergei"]
[Result "0-1"]
[WhiteElo "2646"]
[BlackElo "2877"]
[TimeControl "180+1"]
[EndTime "14:36:55 PDT"]
[Termination "Zhigalko_Sergei won by checkmate"]

1. Nf3 {[%clk 0:03:00]} 1... d5 {[%clk 0:02:57.6]} 2. e3 {[%clk 0:02:59.6]} 2...
Nf6 {[%clk 0:02:57.5]} 3. c4 {[%clk 0:02:59]} 3... e6 {[%clk 0:02:57.3]} 4. b3
{[%clk 0:02:59.1]} 4... Bd6 {[%clk 0:02:55]} 5. Bb2 {[%clk 0:02:59.3]} 5... O-O
{[%clk 0:02:54.7]} 6. Nc3 {[%clk 0:02:56.5]} 6... b6 {[%clk 0:02:39.5]} 7. cxd5
{[%clk 0:02:51.1]} 7... exd5 {[%clk 0:02:38.4]} 8. d4 {[%clk 0:02:47.2]} 8...
Bb7 {[%clk 0:02:36.1]} 9. Bd3 {[%clk 0:02:47.3]} 9... Nbd7 {[%clk 0:02:35.3]}
10. O-O {[%clk 0:02:44.7]} 10... a6 {[%clk 0:02:32]} 11. a3 {[%clk 0:02:43]}
11... Re8 {[%clk 0:02:22.6]} 12. Qc2 {[%clk 0:02:40.7]} 12... Ne4 {[%clk
0:02:21.7]} 13. Rfd1 {[%clk 0:02:28.2]} 13... Qe7 {[%clk 0:02:18.5]} 14. b4
{[%clk 0:02:25.1]} 14... Rad8 {[%clk 0:02:13.4]} 15. Rac1 {[%clk 0:02:22.8]}
15... Qf6 {[%clk 0:01:32.5]} 16. Ne2 {[%clk 0:02:18.8]} 16... g6 {[%clk
0:01:21.8]} 17. Ng3 {[%clk 0:02:13]} 17... Re7 {[%clk 0:01:15]} 18. Rf1 {[%clk
0:01:57.8]} 18... h5 {[%clk 0:01:11.3]} 19. Bxe4 {[%clk 0:01:33.6]} 19... dxe4
{[%clk 0:00:49.5]} 20. Nd2 {[%clk 0:01:33.3]} 20... Rde8 {[%clk 0:00:37.5]} 21.
d5 {[%clk 0:01:11.6]} 21... Qh4 {[%clk 0:00:17.8]} 22. Ndxe4 {[%clk 0:01:10.8]}
22... Rxe4 {[%clk 0:00:17]} 23. f4 {[%clk 0:00:58.6]} 23... Rxe3 {[%clk
0:00:16.3]} 24. f5 {[%clk 0:00:52.2]} 24... Bxg3 {[%clk 0:00:15.2]} 25. hxg3
{[%clk 0:00:51.8]} 25... Qxg3 {[%clk 0:00:16.1]} 26. fxg6 {[%clk 0:00:51.8]}
26... fxg6 {[%clk 0:00:14.3]} 27. Bd4 {[%clk 0:00:43.9]} 27... Re2 {[%clk
0:00:13.3]} 28. Bf2 {[%clk 0:00:38.5]} 28... Rxc2 {[%clk 0:00:12.3]} 29. Bxg3
{[%clk 0:00:38.1]} 29... Rxc1 {[%clk 0:00:12.4]} 30. Rxc1 {[%clk 0:00:39]} 30...
Bxd5 {[%clk 0:00:11.2]} 31. Rxc7 {[%clk 0:00:39.4]} 31... Nf6 {[%clk 0:00:09.1]}
32. Bh4 {[%clk 0:00:37.1]} 32... Ng4 {[%clk 0:00:08.7]} 33. Rc1 {[%clk
0:00:30.7]} 33... Rf8 {[%clk 0:00:07.5]} 34. Rd1 {[%clk 0:00:30.5]} 34... Bc4
{[%clk 0:00:07.5]} 35. Be7 {[%clk 0:00:28.4]} 35... Rf7 {[%clk 0:00:07.2]} 36.
Bd8 {[%clk 0:00:28.6]} 36... b5 {[%clk 0:00:07.1]} 37. Bb6 {[%clk 0:00:29.1]}
37... g5 {[%clk 0:00:07]} 38. Rd8+ {[%clk 0:00:27.6]} 38... Kh7 {[%clk
0:00:07.2]} 39. Bd4 {[%clk 0:00:28.5]} 39... Rf1# {[%clk 0:00:06.4]} 0-1

[Event "Late-Titled-Tuesday-Blitz-September-12-2023"]
[Site "Chess.com"]
[Date "2023.09.12"]
[Round "4"]
[White "mbojan"]
[Black "Djager97"]
[Result "1-0"]
[WhiteElo "2781"]
[BlackElo "2532"]
[TimeControl "180+1"]
[EndTime "14:36:57 PDT"]
[Termination "mbojan won by resignation"]

1. a3 {[%clk 0:03:00.9]} 1... d5 {[%clk 0:02:58.8]} 2. e3 {[%clk 0:02:58.8]}
2... e5 {[%clk 0:02:58.8]} 3. d4 {[%clk 0:02:57.9]} 3... exd4 {[%clk 0:02:57.1]}
4. exd4 {[%clk 0:02:58.3]} 4... Nf6 {[%clk 0:02:57]} 5. Bd3 {[%clk 0:02:58.4]}
5... Bd6 {[%clk 0:02:56.8]} 6. Ne2 {[%clk 0:02:58.7]} 6... Bg4 {[%clk
0:02:50.3]} 7. f3 {[%clk 0:02:56.6]} 7... Bh5 {[%clk 0:02:49.8]} 8. Nbc3 {[%clk
0:02:54.8]} 8... O-O {[%clk 0:02:47]} 9. Bf4 {[%clk 0:02:54.8]} 9... Bg6 {[%clk
0:02:40.7]} 10. O-O {[%clk 0:02:52.5]} 10... c6 {[%clk 0:02:34.7]} 11. Bxg6
{[%clk 0:02:46]} 11... hxg6 {[%clk 0:02:34.5]} 12. Qd2 {[%clk 0:02:45.9]} 12...
Na6 {[%clk 0:02:27.9]} 13. Rae1 {[%clk 0:02:44]} 13... Nc7 {[%clk 0:02:27.8]}
14. Bxd6 {[%clk 0:02:44.5]} 14... Qxd6 {[%clk 0:02:27.8]} 15. Qf4 {[%clk
0:02:45.3]} 15... Qxf4 {[%clk 0:02:21.4]} 16. Nxf4 {[%clk 0:02:46.2]} 16... Rfe8
{[%clk 0:02:21.7]} 17. Kf2 {[%clk 0:02:44.8]} 17... a5 {[%clk 0:02:21]} 18. Na4
{[%clk 0:02:38.2]} 18... Kf8 {[%clk 0:02:15.5]} 19. g4 {[%clk 0:02:34.4]} 19...
Nd7 {[%clk 0:02:06.5]} 20. Nc3 {[%clk 0:02:25.1]} 20... b5 {[%clk 0:01:59]} 21.
Rxe8+ {[%clk 0:02:17.5]} 21... Rxe8 {[%clk 0:01:59.9]} 22. Nd3 {[%clk
0:02:14.2]} 22... Ne6 {[%clk 0:01:54.7]} 23. Ne2 {[%clk 0:02:14.3]} 23... g5
{[%clk 0:01:50.3]} 24. Ra1 {[%clk 0:01:53.7]} 24... f6 {[%clk 0:01:38]} 25. a4
{[%clk 0:01:49.8]} 25... b4 {[%clk 0:01:38.5]} 26. Rc1 {[%clk 0:01:35.5]} 26...
Ke7 {[%clk 0:01:35.3]} 27. Rh1 {[%clk 0:01:26.5]} 27... Kd6 {[%clk 0:01:29.3]}
28. h4 {[%clk 0:01:21.3]} 28... gxh4 {[%clk 0:01:24]} 29. Rxh4 {[%clk
0:01:22.2]} 29... b3 {[%clk 0:01:06.1]} 30. cxb3 {[%clk 0:01:01.6]} 30... Rb8
{[%clk 0:01:05.4]} 31. Ndc1 {[%clk 0:01:00.8]} 31... c5 {[%clk 0:01:05.3]} 32.
Ke3 {[%clk 0:00:38.9]} 32... cxd4+ {[%clk 0:00:48]} 33. Nxd4 {[%clk 0:00:38.7]}
33... Nxd4 {[%clk 0:00:47.4]} 34. Kxd4 {[%clk 0:00:38.9]} 34... Rb4+ {[%clk
0:00:48.3]} 35. Kc3 {[%clk 0:00:35.8]} 35... Rf4 {[%clk 0:00:46.6]} 36. Rh7
{[%clk 0:00:27.6]} 36... Rxf3+ {[%clk 0:00:45.9]} 37. Kc2 {[%clk 0:00:28.2]}
37... g5 {[%clk 0:00:41.2]} 38. Ne2 {[%clk 0:00:08.7]} 38... Nc5 {[%clk
0:00:40.4]} 39. Nd4 {[%clk 0:00:07.9]} 39... Rg3 {[%clk 0:00:40.2]} 40. Nf5+
{[%clk 0:00:07.8]} 1-0

[Event "Late-Titled-Tuesday-Blitz-September-12-2023"]
[Site "Chess.com"]
[Date "2023.09.12"]
[Round "4"]
[White "atigerman"]
[Black "jaskol95"]
[Result "0-1"]
[WhiteElo "2684"]
[BlackElo "2532"]
[TimeControl "180+1"]
[EndTime "14:36:57 PDT"]
[Termination "jaskol95 won on time"]

1. e4 {[%clk 0:03:00.9]} 1... d5 {[%clk 0:03:00.3]} 2. exd5 {[%clk 0:03:00]}
2... Nf6 {[%clk 0:03:01]} 3. Nf3 {[%clk 0:03:00.2]} 3... Bg4 {[%clk 0:03:00.6]}
4. Nc3 {[%clk 0:03:01.1]} 4... Nxd5 {[%clk 0:03:00.8]} 5. Bc4 {[%clk 0:03:01.1]}
5... Nxc3 {[%clk 0:03:00.7]} 6. bxc3 {[%clk 0:03:02]} 6... e6 {[%clk 0:02:56.4]}
7. h3 {[%clk 0:02:57.6]} 7... Bh5 {[%clk 0:02:55.7]} 8. Rb1 {[%clk 0:02:57.2]}
8... b6 {[%clk 0:02:40.8]} 9. g4 {[%clk 0:02:48.4]} 9... Bg6 {[%clk 0:02:41]}
10. d3 {[%clk 0:02:38.5]} 10... Nd7 {[%clk 0:02:36.3]} 11. Bb5 {[%clk
0:02:34.2]} 11... Bd6 {[%clk 0:02:35.5]} 12. Bg5 {[%clk 0:02:21.7]} 12... f6
{[%clk 0:02:33.4]} 13. Be3 {[%clk 0:01:54.9]} 13... O-O {[%clk 0:02:33.2]} 14.
h4 {[%clk 0:01:52.2]} 14... Ne5 {[%clk 0:01:53.8]} 15. h5 {[%clk 0:01:47.8]}
15... Be8 {[%clk 0:01:49]} 16. Nxe5 {[%clk 0:01:30.3]} 16... Bxe5 {[%clk
0:01:48.9]} 17. d4 {[%clk 0:01:28]} 17... Bxb5 {[%clk 0:01:40.4]} 18. Rxb5
{[%clk 0:01:25.5]} 18... Bd6 {[%clk 0:01:40.5]} 19. Qf3 {[%clk 0:00:58.5]} 19...
Qd7 {[%clk 0:01:35.2]} 20. c4 {[%clk 0:00:58.6]} 20... c6 {[%clk 0:01:25.4]} 21.
Rb3 {[%clk 0:00:58.2]} 21... f5 {[%clk 0:01:25.3]} 22. g5 {[%clk 0:00:57.1]}
22... f4 {[%clk 0:01:22.5]} 23. Bd2 {[%clk 0:00:57.3]} 23... e5 {[%clk 0:01:23]}
24. dxe5 {[%clk 0:00:50.6]} 24... Rae8 {[%clk 0:01:22.6]} 25. Rd3 {[%clk
0:00:51.5]} 25... Rxe5+ {[%clk 0:01:21.1]} 26. Kd1 {[%clk 0:00:42.6]} 26... Qc7
{[%clk 0:01:01.4]} 27. h6 {[%clk 0:00:42.9]} 27... g6 {[%clk 0:01:00.2]} 28. Bc3
{[%clk 0:00:42.6]} 28... Rxg5 {[%clk 0:00:55]} 29. Re1 {[%clk 0:00:43.2]} 29...
Be5 {[%clk 0:00:52.1]} 30. Qh3 {[%clk 0:00:28.4]} 30... Bxc3 {[%clk 0:00:41.7]}
31. Rd7 {[%clk 0:00:26.9]} 31... Re5 {[%clk 0:00:35.2]} 32. Rg1 {[%clk 0:00:07]}
32... Rd8 {[%clk 0:00:30.5]} 33. Rxd8+ {[%clk 0:00:01.6]} 33... Qxd8+ {[%clk
0:00:30.9]} 34. Kc1 {[%clk 0:00:02.5]} 34... Qd2+ {[%clk 0:00:30.1]} 35. Kb1
{[%clk 0:00:02.7]} 35... Qe1+ {[%clk 0:00:30.4]} 0-1

[Event "Late-Titled-Tuesday-Blitz-September-12-2023"]
[Site "Chess.com"]
[Date "2023.09.12"]
[Round "4"]
[White "leoduarte"]
[Black "Alex_Banzea"]
[Result "0-1"]
[WhiteElo "2458"]
[BlackElo "2644"]
[TimeControl "180+1"]
[EndTime "14:36:59 PDT"]
[Termination "Alex_Banzea won by checkmate"]

1. d4 {[%clk 0:03:00.9]} 1... d5 {[%clk 0:02:59.9]} 2. c4 {[%clk 0:03:00.8]}
2... e6 {[%clk 0:03:00.6]} 3. Nf3 {[%clk 0:03:01.1]} 3... Nf6 {[%clk 0:03:00.8]}
4. g3 {[%clk 0:03:01.8]} 4... Be7 {[%clk 0:03:01.1]} 5. Bg2 {[%clk 0:03:02.3]}
5... O-O {[%clk 0:03:01.9]} 6. O-O {[%clk 0:03:02.9]} 6... dxc4 {[%clk
0:03:02.6]} 7. Qc2 {[%clk 0:02:58.4]} 7... a6 {[%clk 0:03:03.1]} 8. a4 {[%clk
0:02:58.4]} 8... Bd7 {[%clk 0:03:03.5]} 9. Qxc4 {[%clk 0:02:58.6]} 9... Bc6
{[%clk 0:03:04]} 10. Bf4 {[%clk 0:02:56.5]} 10... Nbd7 {[%clk 0:02:59.9]} 11.
Nc3 {[%clk 0:02:53.3]} 11... Bd6 {[%clk 0:03:00.1]} 12. Bg5 {[%clk 0:02:48]}
12... h6 {[%clk 0:02:58.6]} 13. Bf4 {[%clk 0:02:34.8]} 13... Bxf4 {[%clk
0:02:53.7]} 14. gxf4 {[%clk 0:02:35.7]} 14... Bd5 {[%clk 0:02:52.5]} 15. Qd3
{[%clk 0:02:35.1]} 15... b6 {[%clk 0:02:22.4]} 16. e4 {[%clk 0:02:31.1]} 16...
Bb7 {[%clk 0:02:22.2]} 17. Rfd1 {[%clk 0:02:27.7]} 17... Nh5 {[%clk 0:02:21.6]}
18. Qe3 {[%clk 0:02:24.8]} 18... Qf6 {[%clk 0:02:19.4]} 19. Ne2 {[%clk
0:02:24.3]} 19... c5 {[%clk 0:02:16.9]} 20. dxc5 {[%clk 0:01:50]} 20... Nxc5
{[%clk 0:02:17.8]} 21. Ne5 {[%clk 0:01:49.6]} 21... a5 {[%clk 0:01:52.1]} 22.
Bf3 {[%clk 0:01:49.3]} 22... Qh4 {[%clk 0:01:46.4]} 23. Kh1 {[%clk 0:01:40.9]}
23... Ba6 {[%clk 0:01:46.8]} 24. Bxh5 {[%clk 0:01:28.3]} 24... Qxh5 {[%clk
0:01:47.7]} 25. Ng3 {[%clk 0:01:23.9]} 25... Qh3 {[%clk 0:01:45.3]} 26. Rd6
{[%clk 0:01:15.1]} 26... Bb7 {[%clk 0:01:02]} 27. f3 {[%clk 0:01:06.2]} 27... f5
{[%clk 0:00:18.3]} 28. exf5 {[%clk 0:00:51.8]} 28... exf5 {[%clk 0:00:17.8]} 29.
Rxb6 {[%clk 0:00:48.3]} 29... Rac8 {[%clk 0:00:09.2]} 30. Rxb7 {[%clk
0:00:36.3]} 30... Nxb7 {[%clk 0:00:10.1]} 31. Qb3+ {[%clk 0:00:36.7]} 31... Kh7
{[%clk 0:00:10.5]} 32. Qxb7 {[%clk 0:00:30.9]} 32... Rc2 {[%clk 0:00:11]} 33.
Nf1 {[%clk 0:00:05.6]} 33... Qg2# {[%clk 0:00:10.3]} 0-1

[Event "Late-Titled-Tuesday-Blitz-September-12-2023"]
[Site "Chess.com"]
[Date "2023.09.12"]
[Round "4"]
[White "Langua_Chess"]
[Black "RCone"]
[Result "1-0"]
[WhiteElo "2486"]
[BlackElo "2334"]
[TimeControl "180+1"]
[EndTime "14:37:01 PDT"]
[Termination "Langua_Chess won on time"]

1. d4 {[%clk 0:03:00.9]} 1... d6 {[%clk 0:02:59.7]} 2. e4 {[%clk 0:02:58.5]}
2... Nf6 {[%clk 0:02:59.6]} 3. Nc3 {[%clk 0:02:55.9]} 3... g6 {[%clk 0:02:59.1]}
4. Bc4 {[%clk 0:02:56.3]} 4... Bg7 {[%clk 0:02:58.9]} 5. Nf3 {[%clk 0:02:56.9]}
5... O-O {[%clk 0:02:58.7]} 6. O-O {[%clk 0:02:57.1]} 6... Bg4 {[%clk
0:02:50.9]} 7. h3 {[%clk 0:02:57.2]} 7... Bxf3 {[%clk 0:02:50.9]} 8. Qxf3 {[%clk
0:02:58.1]} 8... Nc6 {[%clk 0:02:50]} 9. Be3 {[%clk 0:02:56.4]} 9... e5 {[%clk
0:02:49.6]} 10. d5 {[%clk 0:02:52.3]} 10... Ne7 {[%clk 0:02:46.2]} 11. b4 {[%clk
0:02:39.9]} 11... Ne8 {[%clk 0:02:44.8]} 12. Bb3 {[%clk 0:02:35.3]} 12... f5
{[%clk 0:02:43.9]} 13. Bg5 {[%clk 0:02:34.4]} 13... Bf6 {[%clk 0:02:39]} 14.
Bxf6 {[%clk 0:02:26.3]} 14... Nxf6 {[%clk 0:02:39.9]} 15. exf5 {[%clk
0:02:22.1]} 15... Nxf5 {[%clk 0:02:40.8]} 16. Ne2 {[%clk 0:02:17.9]} 16... Nh5
{[%clk 0:02:23.8]} 17. Qd3 {[%clk 0:01:59.8]} 17... Qg5 {[%clk 0:02:03.5]} 18.
Qe4 {[%clk 0:01:00.7]} 18... Qf4 {[%clk 0:01:46.3]} 19. Nxf4 {[%clk 0:00:59.5]}
19... Nxf4 {[%clk 0:01:40.7]} 20. Kh2 {[%clk 0:00:49.1]} 20... Nd4 {[%clk
0:01:23]} 21. Rad1 {[%clk 0:00:47.6]} 21... b5 {[%clk 0:01:12.2]} 22. Rxd4
{[%clk 0:00:46.7]} 22... exd4 {[%clk 0:01:11.6]} 23. Qxd4 {[%clk 0:00:47.6]}
23... Rae8 {[%clk 0:01:04]} 24. Qxa7 {[%clk 0:00:46.3]} 24... Re7 {[%clk
0:01:01.9]} 25. Qb7 {[%clk 0:00:37.7]} 25... Rf5 {[%clk 0:00:50.9]} 26. Qxb5
{[%clk 0:00:34.8]} 26... Rg5 {[%clk 0:00:50.8]} 27. Qb8+ {[%clk 0:00:29.7]}
27... Kg7 {[%clk 0:00:50.4]} 28. g3 {[%clk 0:00:30.4]} 28... Ne2 {[%clk
0:00:44.3]} 29. Re1 {[%clk 0:00:22.7]} 29... Rf5 {[%clk 0:00:42.6]} 30. f4
{[%clk 0:00:22.7]} 30... Rf8 {[%clk 0:00:40.1]} 31. Qa7 {[%clk 0:00:20.5]} 31...
Rfe8 {[%clk 0:00:39.7]} 32. Qf2 {[%clk 0:00:18.7]} 32... Nd4 {[%clk 0:00:34.3]}
33. Qxd4+ {[%clk 0:00:18]} 1-0

[Event "Late-Titled-Tuesday-Blitz-September-12-2023"]
[Site "Chess.com"]
[Date "2023.09.12"]
[Round "4"]
[White "LevonAronian"]
[Black "GMKrikor"]
[Result "1-0"]
[WhiteElo "3072"]
[BlackElo "2880"]
[TimeControl "180+1"]
[EndTime "14:37:03 PDT"]
[Termination "LevonAronian won by resignation"]

1. e4 {[%clk 0:03:00.9]} 1... e6 {[%clk 0:02:59.8]} 2. d3 {[%clk 0:02:57.4]}
2... d5 {[%clk 0:03:00.3]} 3. Nd2 {[%clk 0:02:57.8]} 3... Nc6 {[%clk 0:02:59.1]}
4. Ngf3 {[%clk 0:02:56.8]} 4... e5 {[%clk 0:02:54.1]} 5. c3 {[%clk 0:02:54.6]}
5... a5 {[%clk 0:02:53.2]} 6. Qa4 {[%clk 0:02:46.9]} 6... dxe4 {[%clk
0:02:30.2]} 7. dxe4 {[%clk 0:02:42.5]} 7... Bd6 {[%clk 0:02:21.3]} 8. Nc4 {[%clk
0:02:33.9]} 8... Nf6 {[%clk 0:01:37.3]} 9. Ncxe5 {[%clk 0:02:20.6]} 9... O-O
{[%clk 0:01:35.9]} 10. Nxc6 {[%clk 0:02:19.9]} 10... Qe8 {[%clk 0:01:36.4]} 11.
Bb5 {[%clk 0:02:02.4]} 11... Nxe4 {[%clk 0:01:05.6]} 12. Nce5 {[%clk 0:01:59]}
12... c6 {[%clk 0:00:39.2]} 13. Qxe4 {[%clk 0:01:57.9]} 13... cxb5 {[%clk
0:00:39.8]} 14. O-O {[%clk 0:01:58.1]} 14... f6 {[%clk 0:00:30.3]} 15. Qd5+
{[%clk 0:01:57.4]} 15... Qe6 {[%clk 0:00:31.1]} 16. Qxe6+ {[%clk 0:01:54.5]}
16... Bxe6 {[%clk 0:00:32]} 17. Nd3 {[%clk 0:01:54.3]} 17... Bc4 {[%clk
0:00:19.4]} 18. Rd1 {[%clk 0:01:53.7]} 18... Rad8 {[%clk 0:00:17.6]} 19. Nd4
{[%clk 0:01:50.6]} 19... Rfe8 {[%clk 0:00:17.1]} 20. Be3 {[%clk 0:01:49.9]}
20... a4 {[%clk 0:00:15.5]} 21. a3 {[%clk 0:01:48.6]} 21... Bb8 {[%clk
0:00:12.7]} 22. g3 {[%clk 0:01:30]} 22... h5 {[%clk 0:00:12.2]} 23. Nf4 {[%clk
0:01:23.8]} 23... h4 {[%clk 0:00:11.5]} 24. gxh4 {[%clk 0:01:06.2]} 24... Kf7
{[%clk 0:00:10.2]} 25. Ng2 {[%clk 0:00:59.9]} 25... Re4 {[%clk 0:00:06]} 26. Nf5
{[%clk 0:00:54.1]} 26... Ree8 {[%clk 0:00:04.4]} 27. Rxd8 {[%clk 0:00:51.3]}
27... Rxd8 {[%clk 0:00:04.5]} 28. Re1 {[%clk 0:00:47.5]} 28... Be6 {[%clk
0:00:03.7]} 29. Nd4 {[%clk 0:00:46.7]} 29... Bc4 {[%clk 0:00:04.5]} 30. h5
{[%clk 0:00:45.8]} 30... Bd6 {[%clk 0:00:03.5]} 31. Nf5 {[%clk 0:00:43.1]} 31...
Bf8 {[%clk 0:00:03.2]} 32. Bd4 {[%clk 0:00:42.3]} 32... Be6 {[%clk 0:00:03.7]}
33. Ng3 {[%clk 0:00:41.1]} 33... Rd5 {[%clk 0:00:03.1]} 34. Rxe6 {[%clk
0:00:38.4]} 34... Rxd4 {[%clk 0:00:02.1]} 35. cxd4 {[%clk 0:00:33.2]} 35... Kxe6
{[%clk 0:00:02.2]} 36. Nf4+ {[%clk 0:00:33.7]} 36... Kf7 {[%clk 0:00:02.3]} 37.
Nd3 {[%clk 0:00:33.6]} 37... Ke6 {[%clk 0:00:02.3]} 38. Nb4 {[%clk 0:00:28.1]}
38... Bd6 {[%clk 0:00:01.9]} 39. Kf1 {[%clk 0:00:27.6]} 39... f5 {[%clk
0:00:01.9]} 40. Ke2 {[%clk 0:00:27.7]} 40... Be7 {[%clk 0:00:01.9]} 41. f4
{[%clk 0:00:25.6]} 1-0